{"text_format":"1","workbook":"xlsx","n_sheets":3,"sheets":["(Employee 1) Last, First","(Employee 2) Last, First","(Employee 3) Last, First"],"not_rendered":{"charts":0,"images":0,"macros":1,"external_links":0,"defined_names":0,"comments":0,"pivot_tables":0},"unopened":[],"bounds":{"document_bytes":16777216,"sheet_cells":100000,"rows_first":2000,"rows_last":500,"rows_between":2000,"halvings":0,"cell_chars":16384,"cell_head_chars":4096},"cells_cut":0,"cells_raw":0,"read":"whole","date_system":"1900"}

{"sheet":"(Employee 1) Last, First","index":0,"n_rows":54,"n_cols":7,"rows_kept":54,"cut":false,"hidden":false,"merged":[[6,2,6,6],[25,1,25,6],[49,1,49,6],[52,2,52,6],[53,2,53,6],[7,2,7,6],[8,2,8,6],[9,2,9,6],[10,2,10,6],[11,1,11,6],[18,1,18,6],[34,1,34,6],[1,0,1,6],[2,1,2,6],[3,1,3,6],[4,2,4,6],[5,2,5,6]]}
[]
["Administrator's Compensation Survey"]
["Line No.","Salaries of $100,000 or More"]
[null,"Institution and Employee Information"]
[1,"Fiscal Year Reporting:"]
[2,"Institution Fice Code:"]
[3,"Institution Abbreviation:"]
[4,"Employee College ID:"]
[5,"Employee First Name:"]
[6,"Employee Last Name:"]
[7,"Position Title: "]
[null,"Base Salary Information:"]
[null,null,"Public Funds","Private Funds","Total","Source of Private Funds","Memo Field (Optional)"]
[8,"Salary within the Line-Item Maximum for Fiscal Year"]
[9,"State Funds Used to pay above Line-Item (up to 25% of LIM)"]
[10,"UAMS Professional Income Allowance (2.5 multiplier)* "]
[11,"Remaining Salary from other Sources"]
[12,"Total Base Salary",{"$f":"SUM(C14:C15)","v":0},{"$f":"SUM(D16:D17)","v":0},{"$f":"SUM(C18:D18)","v":0}]
[null,"Benefits Provided to All Full-Time Employees"]
[13,"Retirement Match",null,null,{"$f":"SUM(C20:D20)","v":0}]
[14,"Health Insurance",null,null,0]
[15,"Life Insurance",null,null,0]
[16,"Social Security Match",null,null,0]
[17,"Unemployment Insurance",null,null,0]
[18,"Long-Term Disability Insurance",null,null,0]
[null,"Special Benefits NOT Provided All Employees"]
[19,"Car Provided or Car Allowance",null,null,{"$f":"SUM(C27:D27)","v":0}]
[20,"House(s) Provided or Housing Allowance",null,null,{"$f":"SUM(C28:D28)","v":0}]
[21,"Deferred Compensation Actually Paid During Fiscal Year",null,null,0]
[22,"Annual Bonus",null,null,0]
[23,"Special Bonuses",null,null,0]
[24,"Arkansas Employee Career Service Recognition Payment",null,null,0]
[25,"Additional Life Insurance Premiums",null,null,0]
[26,"Club Dues  (Country Club, Civic Clubs, etc.)",null,null,0]
[null,"Other Compensation"]
[27,"   Other Compensation 1: Moving Allowance",null,null,0]
[28,"   Other Compensation 2: Stipend",null,null,0]
[29,"   Other Compensation 3: Athletic Tournament Appearance",null,null,0]
[30,"   Other Compensation 4: Incentive Bonus",null,null,0]
[31,"   Other Compensation 5: Teaching Overload",null,null,0]
[32,"   Other Compensation 6: Taxable Athletic Tickets",null,null,0]
[33,"   Other Compensation 7: Taxable Sponsored Apparel",null,null,0]
[34,"   Other Compensation 8: Television/Radio Show",null,null,0]
[35,"   Other Compensation 9: Electronic Allowance",null,null,0]
[36,"   Other Compensation 10: Entertainment Expense",null,null,0]
[37,"   Other Compensation 11: Taxable Health Benefits",null,null,0]
[38,"   Other Compensation 12: Other",null,null,0]
[39,"   Other Compensation 13: Other",null,null,0]
[40,"   Other Compensation 14: Other",null,null,0]
[null,"Total Compensation"]
[41,"Total Compensation",{"$f":"SUM(C18:C49)","v":0},{"$f":"SUM(D18:D49)","v":0},{"$f":"SUM(E18:E50)","v":0}]
[42,"Deferred Compensation Annual Accumulation but NOT Paid"]
[43,"Survey completed by:"]
[44,"Phone No."]

{"sheet":"(Employee 2) Last, First","index":1,"n_rows":54,"n_cols":7,"rows_kept":54,"cut":false,"hidden":false,"merged":[[6,2,6,6],[1,0,1,6],[2,1,2,6],[3,1,3,6],[4,2,4,6],[5,2,5,6],[25,1,25,6],[49,1,49,6],[52,2,52,6],[53,2,53,6],[7,2,7,6],[8,2,8,6],[9,2,9,6],[10,2,10,6],[11,1,11,6],[18,1,18,6],[34,1,34,6]]}
[]
["Administrator's Compensation Survey"]
["Line No.","Salaries of $100,000 or More"]
[null,"Institution and Employee Information"]
[1,"Fiscal Year Reporting:"]
[2,"Institution Fice Code:"]
[3,"Institution Abbreviation:"]
[4,"Employee College ID:"]
[5,"Employee First Name:"]
[6,"Employee Last Name:"]
[7,"Position Title: "]
[null,"Base Salary Information:"]
[null,null,"Public Funds","Private Funds","Total","Source of Private Funds","Memo Field (Optional)"]
[8,"Salary within the Line-Item Maximum for Fiscal Year"]
[9,"State Funds Used to pay above Line-Item (up to 25% of LIM)"]
[10,"UAMS Professional Income Allowance (2.5 multiplier)* "]
[11,"Remaining Salary from other Sources"]
[12,"Total Base Salary",{"$f":"SUM(C14:C15)","v":0},{"$f":"SUM(D16:D17)","v":0},{"$f":"SUM(C18:D18)","v":0}]
[null,"Benefits Provided to All Full-Time Employees"]
[13,"Retirement Match",null,null,{"$f":"C20+D20","v":0}]
[14,"Health Insurance",null,null,{"$f":"SUM(C21:D21)","v":0}]
[15,"Life Insurance",null,null,{"$f":"SUM(C22:D22)","v":0}]
[16,"Social Security Match",null,null,{"$f":"SUM(C23:D23)","v":0}]
[17,"Unemployment Insurance",null,null,{"$f":"SUM(C24:D24)","v":0}]
[18,"Long-Term Disability Insurance",null,null,{"$f":"SUM(C25:D25)","v":0}]
[null,"Special Benefits NOT Provided All Employees"]
[19,"Car Provided or Car Allowance",null,null,{"$f":"SUM(C27:D27)","v":0}]
[20,"House(s) Provided or Housing Allowance",null,null,{"$f":"SUM(C28:D28)","v":0}]
[21,"Deferred Compensation Actually Paid During Fiscal Year",null,null,0]
[22,"Annual Bonus",null,null,0]
[23,"Special Bonuses",null,null,0]
[24,"Arkansas Employee Career Service Recognition Payment",null,null,0]
[25,"Additional Life Insurance Premiums",null,null,0]
[26,"Club Dues  (Country Club, Civic Clubs, etc.)",null,null,0]
[null,"Other Compensation"]
[27,"   Other Compensation 1: Moving Allowance",null,null,0]
[28,"   Other Compensation 2: Stipend",null,null,0]
[29,"   Other Compensation 3: Athletic Tournament Appearance",null,null,0]
[30,"   Other Compensation 4: Incentive Bonus",null,null,0]
[31,"   Other Compensation 5: Teaching Overload",null,null,0]
[32,"   Other Compensation 6: Taxable Athletic Tickets",null,null,0]
[33,"   Other Compensation 7: Taxable Sponsored Apparel",null,null,0]
[34,"   Other Compensation 8: Television/Radio Show",null,null,0]
[35,"   Other Compensation 9: Electronic Allowance",null,null,0]
[36,"   Other Compensation 10: Entertainment Expense",null,null,0]
[37,"   Other Compensation 11: Taxable Health Benefits",null,null,0]
[38,"   Other Compensation 12: Other",null,null,0]
[39,"   Other Compensation 13: Other",null,null,0]
[40,"   Other Compensation 14: Other",null,null,0]
[null,"Total Compensation"]
[41,"Total Compensation",{"$f":"SUM(C18:C49)","v":0},{"$f":"SUM(D18:D49)","v":0},{"$f":"SUM(E18:E50)","v":0}]
[42,"Deferred Compensation Annual Accumulation but NOT Paid"]
[43,"Survey completed by:"]
[44,"Phone No."]

{"sheet":"(Employee 3) Last, First","index":2,"n_rows":54,"n_cols":7,"rows_kept":54,"cut":false,"hidden":false,"merged":[[6,2,6,6],[1,0,1,6],[2,1,2,6],[3,1,3,6],[4,2,4,6],[5,2,5,6],[25,1,25,6],[49,1,49,6],[52,2,52,6],[53,2,53,6],[7,2,7,6],[8,2,8,6],[9,2,9,6],[10,2,10,6],[11,1,11,6],[18,1,18,6],[34,1,34,6]]}
[]
["Administrator's Compensation Survey"]
["Line No.","Salaries of $100,000 or More"]
[null,"Institution and Employee Information"]
[1,"Fiscal Year Reporting:"]
[2,"Institution Fice Code:"]
[3,"Institution Abbreviation:"]
[4,"Employee College ID:"]
[5,"Employee First Name:"]
[6,"Employee Last Name:"]
[7,"Position Title: "]
[null,"Base Salary Information:"]
[null,null,"Public Funds","Private Funds","Total","Source of Private Funds","Memo Field (Optional)"]
[8,"Salary within the Line-Item Maximum for Fiscal Year"]
[9,"State Funds Used to pay above Line-Item (up to 25% of LIM)"]
[10,"UAMS Professional Income Allowance (2.5 multiplier)* "]
[11,"Remaining Salary from other Sources"]
[12,"Total Base Salary",{"$f":"SUM(C14:C15)","v":0},{"$f":"SUM(D16:D17)","v":0},{"$f":"SUM(C18:D18)","v":0}]
[null,"Benefits Provided to All Full-Time Employees"]
[13,"Retirement Match",null,null,{"$f":"C20+D20","v":0}]
[14,"Health Insurance",null,null,{"$f":"SUM(C21:D21)","v":0}]
[15,"Life Insurance",null,null,{"$f":"SUM(C22:D22)","v":0}]
[16,"Social Security Match",null,null,{"$f":"SUM(C23:D23)","v":0}]
[17,"Unemployment Insurance",null,null,{"$f":"SUM(C24:D24)","v":0}]
[18,"Long-Term Disability Insurance",null,null,{"$f":"SUM(C25:D25)","v":0}]
[null,"Special Benefits NOT Provided All Employees"]
[19,"Car Provided or Car Allowance",null,null,{"$f":"SUM(C27:D27)","v":0}]
[20,"House(s) Provided or Housing Allowance",null,null,{"$f":"SUM(C28:D28)","v":0}]
[21,"Deferred Compensation Actually Paid During Fiscal Year",null,null,0]
[22,"Annual Bonus",null,null,0]
[23,"Special Bonuses",null,null,0]
[24,"Arkansas Employee Career Service Recognition Payment",null,null,0]
[25,"Additional Life Insurance Premiums",null,null,0]
[26,"Club Dues  (Country Club, Civic Clubs, etc.)",null,null,0]
[null,"Other Compensation"]
[27,"   Other Compensation 1: Moving Allowance",null,null,0]
[28,"   Other Compensation 2: Stipend",null,null,0]
[29,"   Other Compensation 3: Athletic Tournament Appearance",null,null,0]
[30,"   Other Compensation 4: Incentive Bonus",null,null,0]
[31,"   Other Compensation 5: Teaching Overload",null,null,0]
[32,"   Other Compensation 6: Taxable Athletic Tickets",null,null,0]
[33,"   Other Compensation 7: Taxable Sponsored Apparel",null,null,0]
[34,"   Other Compensation 8: Television/Radio Show",null,null,0]
[35,"   Other Compensation 9: Electronic Allowance",null,null,0]
[36,"   Other Compensation 10: Entertainment Expense",null,null,0]
[37,"   Other Compensation 11: Taxable Health Benefits",null,null,0]
[38,"   Other Compensation 12: Other",null,null,0]
[39,"   Other Compensation 13: Other",null,null,0]
[40,"   Other Compensation 14: Other",null,null,0]
[null,"Total Compensation"]
[41,"Total Compensation",{"$f":"SUM(C18:C49)","v":0},{"$f":"SUM(D18:D49)","v":0},{"$f":"SUM(E18:E50)","v":0}]
[42,"Deferred Compensation Annual Accumulation but NOT Paid"]
[43,"Survey completed by:"]
[44,"Phone No."]